[Event "Titled Tuesday Blitz October 31 Early 2023"]
[White "Antonio, Jorge Carlos"]
[Black "MFatigue"]
[WhiteFideId "113190"]
[WhiteElo "2312"]
[BlackElo "2486"]
[Result "1/2-1/2"]
[Round "4"]
[TimeControl "180+1"]
[Date "2023.10.31"]
[WhiteClock "0:00:41"]
[BlackClock "0:00:10"]
[Board "133"]

1. d4 {[%clk 0:03:00]}  d5 {[%clk 0:02:57]} 2. Nf3 {[%clk 0:03:00]}  Nf6 {[%clk 0:02:57]} 3. Bf4 {[%clk 0:02:59]}  e6 {[%clk 0:02:57]} 4. e3 {[%clk 0:03:00]}  c5 {[%clk 0:02:57]} 5. c3 {[%clk 0:02:59]}  Bd6 {[%clk 0:02:58]} 6. Bxd6 {[%clk 0:02:59]}  Qxd6 {[%clk 0:02:58]} 7. Ne5 {[%clk 0:02:59]}  Nc6 {[%clk 0:02:58]} 8. f4 {[%clk 0:02:59]}  Ne4 {[%clk 0:02:59]} 9. Nd2 {[%clk 0:02:58]}  Nxd2 {[%clk 0:02:57]} 10. Qxd2 {[%clk 0:02:58]}  f6 {[%clk 0:02:58]} 11. Nxc6 {[%clk 0:02:57]}  bxc6 {[%clk 0:02:59]} 12. Be2 {[%clk 0:02:56]}  O-O {[%clk 0:02:58]} 13. O-O {[%clk 0:02:55]}  Bd7 {[%clk 0:02:58]} 14. Rf3 {[%clk 0:02:51]}  e5 {[%clk 0:02:48]} 15. fxe5 {[%clk 0:02:50]}  fxe5 {[%clk 0:02:49]} 16. Raf1 {[%clk 0:02:49]}  cxd4 {[%clk 0:02:27]} 17. cxd4 {[%clk 0:02:38]}  c5 {[%clk 0:02:27]} 18. dxe5 {[%clk 0:02:33]}  Qxe5 {[%clk 0:02:26]} 19. Rxf8+ {[%clk 0:02:30]}  Rxf8 {[%clk 0:02:26]} 20. Rxf8+ {[%clk 0:02:30]}  Kxf8 {[%clk 0:02:27]} 21. Bf3 {[%clk 0:02:26]}  Be6 {[%clk 0:02:22]} 22. h3 {[%clk 0:02:19]}  Ke7 {[%clk 0:02:02]} 23. Qa5 {[%clk 0:02:17]}  Qxe3+ {[%clk 0:02:01]} 24. Kh1 {[%clk 0:02:14]}  c4 {[%clk 0:01:37]} 25. Qc7+ {[%clk 0:02:10]}  Kf6 {[%clk 0:01:37]} 26. Qd8+ {[%clk 0:02:09]}  Ke5 {[%clk 0:01:27]} 27. Qc7+ {[%clk 0:02:05]}  Kd4 {[%clk 0:01:26]} 28. Qxa7+ {[%clk 0:02:01]}  Kd3 {[%clk 0:01:27]} 29. Qxg7 {[%clk 0:01:49]}  d4 {[%clk 0:01:09]} 30. Qxh7+ {[%clk 0:01:46]}  Kd2 {[%clk 0:01:09]} 31. Qb1 {[%clk 0:01:34]}  Qe1+ {[%clk 0:00:53]} 32. Qxe1+ {[%clk 0:01:31]}  Kxe1 {[%clk 0:00:54]} 33. a4 {[%clk 0:01:30]}  d3 {[%clk 0:00:30]} 34. a5 {[%clk 0:01:29]}  d2 {[%clk 0:00:31]} 35. h4 {[%clk 0:01:23]}  Bd5 {[%clk 0:00:27]} 36. Bg4 {[%clk 0:01:20]}  Kf2 {[%clk 0:00:25]} 37. Kh2 {[%clk 0:01:15]}  Bxg2 {[%clk 0:00:24]} 38. a6 {[%clk 0:01:15]}  Bf3 {[%clk 0:00:25]} 39. Bxf3 {[%clk 0:01:09]}  Kxf3 {[%clk 0:00:25]} 40. a7 {[%clk 0:01:10]}  d1=Q {[%clk 0:00:26]} 41. a8=Q+ {[%clk 0:01:10]}  Ke3 {[%clk 0:00:26]} 42. Qe8+ {[%clk 0:01:09]}  Kf4 {[%clk 0:00:20]} 43. Qf7+ {[%clk 0:01:09]}  Kg4 {[%clk 0:00:20]} 44. Qg6+ {[%clk 0:01:01]}  Kxh4 {[%clk 0:00:20]} 45. Qh6+ {[%clk 0:00:58]}  Kg4 {[%clk 0:00:19]} 46. Qg6+ {[%clk 0:00:57]}  Kf4 {[%clk 0:00:19]} 47. Qf7+ {[%clk 0:00:55]}  Ke3 {[%clk 0:00:15]} 48. Qxc4 {[%clk 0:00:52]}  Qh5+ {[%clk 0:00:16]} 49. Kg3 {[%clk 0:00:50]}  Qg5+ {[%clk 0:00:17]} 50. Qg4 {[%clk 0:00:48]}  Qxg4+ {[%clk 0:00:09]} 51. Kxg4 {[%clk 0:00:48]}  Kd4 {[%clk 0:00:09]} 52. Kf3 {[%clk 0:00:46]}  Kc4 {[%clk 0:00:09]} 53. Ke3 {[%clk 0:00:45]}  Kb3 {[%clk 0:00:10]} 54. Kd3 {[%clk 0:00:41]}  Kxb2 {[%clk 0:00:10]} 1/2-1/2


[Site "https://www.chess.com"]

[Event "Titled Tuesday Blitz October 31 Early 2023"]
[White "Martins, Bruno Andre Leite"]
[Black "Novikova, Anna"]
[WhiteFideId "1942255"]
[BlackFideId "4146794"]
[WhiteElo "2475"]
[BlackElo "2311"]
[Result "1-0"]
[Round "4"]
[TimeControl "180+1"]
[Date "2023.10.31"]
[WhiteClock "0:00:26"]
[BlackClock "0:00:00"]
[Board "135"]

1. Nc3 {[%clk 0:02:59]}  Nf6 {[%clk 0:02:56]} 2. e4 {[%clk 0:02:58]}  e5 {[%clk 0:02:53]} 3. Nf3 {[%clk 0:02:57]}  Nc6 {[%clk 0:02:52]} 4. a3 {[%clk 0:02:55]}  d5 {[%clk 0:02:42]} 5. Bb5 {[%clk 0:02:51]}  Nxe4 {[%clk 0:02:19]} 6. O-O {[%clk 0:02:38]}  Nxc3 {[%clk 0:02:17]} 7. dxc3 {[%clk 0:02:36]}  e4 {[%clk 0:02:17]} 8. Ne5 {[%clk 0:02:34]}  Qd6 {[%clk 0:02:17]} 9. Bf4 {[%clk 0:02:26]}  a6 {[%clk 0:02:00]} 10. Ba4 {[%clk 0:02:15]}  b5 {[%clk 0:02:00]} 11. Nxc6 {[%clk 0:02:15]}  Qxc6 {[%clk 0:02:00]} 12. Bb3 {[%clk 0:02:15]}  Bb7 {[%clk 0:01:55]} 13. Qg4 {[%clk 0:02:09]}  h5 {[%clk 0:01:33]} 14. Qg3 {[%clk 0:02:03]}  O-O-O {[%clk 0:01:25]} 15. a4 {[%clk 0:01:59]}  g5 {[%clk 0:01:13]} 16. Bxg5 {[%clk 0:01:53]}  Rg8 {[%clk 0:01:11]} 17. Qh3+ {[%clk 0:01:51]}  Rd7 {[%clk 0:00:47]} 18. Be3 {[%clk 0:01:51]}  Qe6 {[%clk 0:00:33]} 19. Qxe6 {[%clk 0:01:49]}  fxe6 {[%clk 0:00:34]} 20. axb5 {[%clk 0:01:49]}  axb5 {[%clk 0:00:28]} 21. f3 {[%clk 0:01:46]}  exf3 {[%clk 0:00:24]} 22. Rxf3 {[%clk 0:01:42]}  Rdg7 {[%clk 0:00:24]} 23. Rf2 {[%clk 0:01:21]}  Bd6 {[%clk 0:00:15]} 24. Re1 {[%clk 0:00:45]}  h4 {[%clk 0:00:14]} 25. Bd4 {[%clk 0:00:42]}  Rg6 {[%clk 0:00:12]} 26. Kf1 {[%clk 0:00:42]}  Bxh2 {[%clk 0:00:11]} 27. Be5 {[%clk 0:00:40]}  Bg3 {[%clk 0:00:09]} 28. Bxg3 {[%clk 0:00:39]}  hxg3 {[%clk 0:00:10]} 29. Rfe2 {[%clk 0:00:35]}  Rf8+ {[%clk 0:00:10]} 30. Kg1 {[%clk 0:00:35]}  Rgf6 {[%clk 0:00:08]} 31. Rxe6 {[%clk 0:00:33]}  Rf2 {[%clk 0:00:05]} 32. Rg6 {[%clk 0:00:26]}  d4 {[%clk 0:00:04]} 33. Rxg3 {[%clk 0:00:26]}  dxc3 {[%clk 0:00:02]} 34. bxc3 {[%clk 0:00:27]}  c5 {[%clk 0:00:02]} 35. Be6+ {[%clk 0:00:26]}  Kc7 {[%clk 0:00:01]} 36. Bh3 {[%clk 0:00:27]}  Rxc2 {[%clk 0:00:00]} 37. Re7+ {[%clk 0:00:26]} 1-0


[Site "https://www.chess.com"]

[Event "Titled Tuesday Blitz October 31 Early 2023"]
[White "Tikhonov, Viacheslav"]
[Black "Schut, Han"]
[WhiteFideId "44196407"]
[BlackFideId "1005561"]
[WhiteElo "2471"]
[BlackElo "2304"]
[Result "1-0"]
[Round "4"]
[TimeControl "180+1"]
[Date "2023.10.31"]
[WhiteClock "0:00:21"]
[BlackClock "0:00:10"]
[Board "136"]

1. e4 {[%clk 0:03:00]}  c5 {[%clk 0:02:59]} 2. Nf3 {[%clk 0:03:01]}  d6 {[%clk 0:03:00]} 3. Nc3 {[%clk 0:03:01]}  Nf6 {[%clk 0:03:00]} 4. e5 {[%clk 0:03:01]}  dxe5 {[%clk 0:03:00]} 5. Nxe5 {[%clk 0:03:02]}  Nbd7 {[%clk 0:02:59]} 6. d4 {[%clk 0:03:02]}  Nxe5 {[%clk 0:02:53]} 7. dxe5 {[%clk 0:03:03]}  Qxd1+ {[%clk 0:02:53]} 8. Kxd1 {[%clk 0:03:03]}  Ng4 {[%clk 0:02:52]} 9. Bb5+ {[%clk 0:03:03]}  Bd7 {[%clk 0:02:45]} 10. e6 {[%clk 0:03:04]}  Bxb5 {[%clk 0:02:36]} 11. Nxb5 {[%clk 0:03:05]}  O-O-O+ {[%clk 0:02:31]} 12. Ke2 {[%clk 0:03:04]}  a6 {[%clk 0:02:21]} 13. Nc3 {[%clk 0:03:00]}  fxe6 {[%clk 0:02:15]} 14. Na4 {[%clk 0:02:47]}  c4 {[%clk 0:01:59]} 15. Nb6+ {[%clk 0:02:40]}  Kc7 {[%clk 0:01:54]} 16. Nxc4 {[%clk 0:02:41]}  e5 {[%clk 0:01:43]} 17. h3 {[%clk 0:02:34]}  Rd4 {[%clk 0:01:37]} 18. Nd2 {[%clk 0:02:15]}  Nf6 {[%clk 0:01:26]} 19. Nf3 {[%clk 0:02:15]}  Rc4 {[%clk 0:01:03]} 20. c3 {[%clk 0:02:00]}  e4 {[%clk 0:01:03]} 21. Ne5 {[%clk 0:01:50]}  Rc5 {[%clk 0:00:49]} 22. Bf4 {[%clk 0:01:46]}  Kc8 {[%clk 0:00:49]} 23. Nf7 {[%clk 0:01:33]}  Rg8 {[%clk 0:00:45]} 24. Rhd1 {[%clk 0:01:29]}  Nd5 {[%clk 0:00:33]} 25. Bg3 {[%clk 0:01:06]}  e6 {[%clk 0:00:22]} 26. Rd4 {[%clk 0:01:01]}  Rb5 {[%clk 0:00:11]} 27. Rb1 {[%clk 0:00:21]}  Nxc3+ {[%clk 0:00:10]} 28. bxc3 {[%clk 0:00:20]}  Rxb1 {[%clk 0:00:10]} 29. Rd8# {[%clk 0:00:21]} 1-0


[Site "https://www.chess.com"]

[Event "Titled Tuesday Blitz October 31 Early 2023"]
[White "LouieKov2022"]
[Black "Shapiro, Daniel"]
[BlackFideId "2001780"]
[WhiteElo "2466"]
[BlackElo "2304"]
[Result "1-0"]
[Round "4"]
[TimeControl "180+1"]
[Date "2023.10.31"]
[WhiteClock "0:00:46"]
[BlackClock "0:00:03"]
[Board "137"]

1. e4 {[%clk 0:02:59]}  c5 {[%clk 0:02:59]} 2. Nf3 {[%clk 0:02:58]}  Nc6 {[%clk 0:02:59]} 3. d4 {[%clk 0:02:58]}  cxd4 {[%clk 0:02:58]} 4. Nxd4 {[%clk 0:02:59]}  Nf6 {[%clk 0:02:59]} 5. Nc3 {[%clk 0:02:59]}  d6 {[%clk 0:02:59]} 6. Bg5 {[%clk 0:02:57]}  Qb6 {[%clk 0:02:58]} 7. Ndb5 {[%clk 0:02:54]}  a6 {[%clk 0:02:45]} 8. Bxf6 {[%clk 0:02:53]}  gxf6 {[%clk 0:02:35]} 9. Nd5 {[%clk 0:02:52]}  Qa5+ {[%clk 0:02:32]} 10. Nbc3 {[%clk 0:02:43]}  Bg7 {[%clk 0:02:17]} 11. Qd2 {[%clk 0:02:26]}  f5 {[%clk 0:01:53]} 12. exf5 {[%clk 0:02:16]}  Bxf5 {[%clk 0:01:47]} 13. Bd3 {[%clk 0:02:17]}  Bg6 {[%clk 0:01:38]} 14. O-O {[%clk 0:02:06]}  e6 {[%clk 0:01:36]} 15. Rfe1 {[%clk 0:02:00]}  O-O {[%clk 0:01:26]} 16. Ne3 {[%clk 0:01:58]}  d5 {[%clk 0:01:22]} 17. Ng4 {[%clk 0:01:44]}  d4 {[%clk 0:01:06]} 18. Ne4 {[%clk 0:01:41]}  Bxe4 {[%clk 0:01:01]} 19. Qxa5 {[%clk 0:01:38]}  Nxa5 {[%clk 0:01:01]} 20. Rxe4 {[%clk 0:01:33]}  f5 {[%clk 0:01:01]} 21. Rxe6 {[%clk 0:01:30]}  fxg4 {[%clk 0:00:58]} 22. Rae1 {[%clk 0:01:30]}  Bf6 {[%clk 0:00:44]} 23. Rb6 {[%clk 0:01:23]}  Rae8 {[%clk 0:00:34]} 24. Kf1 {[%clk 0:01:22]}  Rxe1+ {[%clk 0:00:31]} 25. Kxe1 {[%clk 0:01:22]}  Re8+ {[%clk 0:00:30]} 26. Kd1 {[%clk 0:01:18]}  Bd8 {[%clk 0:00:25]} 27. Rh6 {[%clk 0:01:12]}  Re7 {[%clk 0:00:20]} 28. Rd6 {[%clk 0:01:10]}  Bc7 {[%clk 0:00:19]} 29. Rxd4 {[%clk 0:01:10]}  h5 {[%clk 0:00:18]} 30. Rd5 {[%clk 0:01:07]}  Bb6 {[%clk 0:00:16]} 31. Rxh5 {[%clk 0:01:05]}  Nc6 {[%clk 0:00:16]} 32. Rg5+ {[%clk 0:01:00]}  Rg7 {[%clk 0:00:16]} 33. Bc4+ {[%clk 0:00:58]}  Kf8 {[%clk 0:00:15]} 34. Rf5+ {[%clk 0:00:58]}  Ke7 {[%clk 0:00:16]} 35. Be2 {[%clk 0:00:57]}  Nd4 {[%clk 0:00:15]} 36. Re5+ {[%clk 0:00:57]}  Kd6 {[%clk 0:00:15]} 37. Re4 {[%clk 0:00:56]}  Nxe2 {[%clk 0:00:14]} 38. Kxe2 {[%clk 0:00:57]}  Re7 {[%clk 0:00:14]} 39. Rxe7 {[%clk 0:00:56]}  Kxe7 {[%clk 0:00:15]} 40. f3 {[%clk 0:00:56]}  gxf3+ {[%clk 0:00:14]} 41. Kxf3 {[%clk 0:00:57]}  Kf6 {[%clk 0:00:15]} 42. h4 {[%clk 0:00:55]}  Bd4 {[%clk 0:00:13]} 43. c3 {[%clk 0:00:55]}  Be5 {[%clk 0:00:13]} 44. g4 {[%clk 0:00:55]}  b5 {[%clk 0:00:13]} 45. Ke4 {[%clk 0:00:55]}  Bg3 {[%clk 0:00:13]} 46. h5 {[%clk 0:00:54]}  Kg5 {[%clk 0:00:14]} 47. Kd5 {[%clk 0:00:53]}  Bf4 {[%clk 0:00:12]} 48. Kc6 {[%clk 0:00:50]}  Kxg4 {[%clk 0:00:12]} 49. Kb6 {[%clk 0:00:51]}  Bc1 {[%clk 0:00:11]} 50. b3 {[%clk 0:00:47]}  Bb2 {[%clk 0:00:12]} 51. h6 {[%clk 0:00:45]}  Bxc3 {[%clk 0:00:11]} 52. Kxa6 {[%clk 0:00:44]}  b4 {[%clk 0:00:12]} 53. h7 {[%clk 0:00:45]}  Kh5 {[%clk 0:00:11]} 54. Kb5 {[%clk 0:00:45]}  Kh6 {[%clk 0:00:10]} 55. Kc4 {[%clk 0:00:46]}  Kxh7 {[%clk 0:00:09]} 56. a4 {[%clk 0:00:46]}  Kg7 {[%clk 0:00:07]} 57. a5 {[%clk 0:00:47]}  Be5 {[%clk 0:00:06]} 58. Kxb4 {[%clk 0:00:45]}  Kf7 {[%clk 0:00:04]} 59. Kc5 {[%clk 0:00:46]}  Bb8 {[%clk 0:00:03]} 60. Kc6 {[%clk 0:00:46]}  Ke6 {[%clk 0:00:03]} 61. b4 {[%clk 0:00:46]}  Be5 {[%clk 0:00:02]} 62. b5 {[%clk 0:00:47]}  Bc3 {[%clk 0:00:01]} 63. a6 {[%clk 0:00:46]}  Bd4 {[%clk 0:00:01]} 64. b6 {[%clk 0:00:46]}  Bxb6 {[%clk 0:00:01]} 65. Kxb6 {[%clk 0:00:47]}  Kd6 {[%clk 0:00:01]} 66. a7 {[%clk 0:00:48]}  Kd5 {[%clk 0:00:02]} 67. a8=Q+ {[%clk 0:00:46]}  Kc4 {[%clk 0:00:03]} 1-0


[Site "https://www.chess.com"]

[Event "Titled Tuesday Blitz October 31 Early 2023"]
[White "Ng, Gary"]
[Black "Devaev, Alexander"]
[WhiteFideId "2604914"]
[BlackFideId "4169395"]
[WhiteElo "2276"]
[BlackElo "2458"]
[Result "0-1"]
[Round "4"]
[TimeControl "180+1"]
[Date "2023.10.31"]
[WhiteClock "0:00:00"]
[BlackClock "0:00:17"]
[Board "140"]

1. d4 {[%clk 0:03:00]}  Nf6 {[%clk 0:02:58]} 2. Bf4 {[%clk 0:03:01]}  e6 {[%clk 0:02:57]} 3. e3 {[%clk 0:03:01]}  b6 {[%clk 0:02:58]} 4. Qf3 {[%clk 0:03:00]}  c6 {[%clk 0:02:53]} 5. Nd2 {[%clk 0:02:57]}  Bb7 {[%clk 0:02:52]} 6. Be2 {[%clk 0:02:56]}  Be7 {[%clk 0:02:48]} 7. Qg3 {[%clk 0:02:50]}  O-O {[%clk 0:02:48]} 8. Bd6 {[%clk 0:02:46]}  c5 {[%clk 0:02:42]} 9. c3 {[%clk 0:02:39]}  Bxd6 {[%clk 0:02:37]} 10. Qxd6 {[%clk 0:02:38]}  Bxg2 {[%clk 0:02:37]} 11. Bf3 {[%clk 0:02:33]}  Bxh1 {[%clk 0:02:25]} 12. Bxh1 {[%clk 0:02:34]}  Nc6 {[%clk 0:02:24]} 13. dxc5 {[%clk 0:02:34]}  bxc5 {[%clk 0:02:25]} 14. Qxc5 {[%clk 0:02:34]}  Rb8 {[%clk 0:02:20]} 15. O-O-O {[%clk 0:02:32]}  Qe7 {[%clk 0:02:02]} 16. Qg5 {[%clk 0:02:11]}  d5 {[%clk 0:01:58]} 17. Ngf3 {[%clk 0:02:07]}  h6 {[%clk 0:01:57]} 18. Qg3 {[%clk 0:02:05]}  Ne4 {[%clk 0:01:37]} 19. Nxe4 {[%clk 0:01:52]}  dxe4 {[%clk 0:01:37]} 20. Nd2 {[%clk 0:01:53]}  f5 {[%clk 0:01:30]} 21. Rg1 {[%clk 0:01:47]}  Rf7 {[%clk 0:01:20]} 22. Nc4 {[%clk 0:01:45]}  Rd8 {[%clk 0:01:14]} 23. Qg6 {[%clk 0:01:41]}  Qf6 {[%clk 0:01:07]} 24. Qg3 {[%clk 0:01:31]}  Rfd7 {[%clk 0:01:06]} 25. f3 {[%clk 0:01:24]}  exf3 {[%clk 0:00:40]} 26. Bxf3 {[%clk 0:01:25]}  Ne7 {[%clk 0:00:40]} 27. Ne5 {[%clk 0:01:09]}  Rd6 {[%clk 0:00:36]} 28. Bh5 {[%clk 0:01:05]}  Rf8 {[%clk 0:00:33]} 29. Ng6 {[%clk 0:00:42]}  Rfd8 {[%clk 0:00:33]} 30. Ne5 {[%clk 0:00:40]}  Rd5 {[%clk 0:00:21]} 31. Nc4 {[%clk 0:00:18]}  Kh7 {[%clk 0:00:21]} 32. Bf3 {[%clk 0:00:14]}  R5d7 {[%clk 0:00:17]} 33. Ne5 {[%clk 0:00:13]}  Rd6 {[%clk 0:00:16]} 34. Bh5 {[%clk 0:00:13]}  Rd5 {[%clk 0:00:14]} 35. Nf3 {[%clk 0:00:08]}  e5 {[%clk 0:00:13]} 36. Nh4 {[%clk 0:00:07]}  f4 {[%clk 0:00:13]} 37. exf4 {[%clk 0:00:07]}  Qxf4+ {[%clk 0:00:14]} 38. Qxf4 {[%clk 0:00:07]}  exf4 {[%clk 0:00:15]} 39. Bf3 {[%clk 0:00:05]}  g5 {[%clk 0:00:15]} 40. Bxd5 {[%clk 0:00:04]}  Nxd5 {[%clk 0:00:13]} 41. Nf5 {[%clk 0:00:03]}  Ne3 {[%clk 0:00:14]} 42. Nxe3 {[%clk 0:00:03]}  fxe3 {[%clk 0:00:15]} 43. Re1 {[%clk 0:00:03]}  Re8 {[%clk 0:00:16]} 44. Kc2 {[%clk 0:00:03]}  Kg6 {[%clk 0:00:16]} 45. Kd3 {[%clk 0:00:03]}  Kf5 {[%clk 0:00:17]} 46. Rxe3 {[%clk 0:00:04]}  Rd8+ {[%clk 0:00:18]} 47. Ke2 {[%clk 0:00:04]}  Kf4 {[%clk 0:00:18]} 48. Rf3+ {[%clk 0:00:04]}  Kg4 {[%clk 0:00:18]} 49. Rg3+ {[%clk 0:00:04]}  Kf4 {[%clk 0:00:18]} 50. Rf3+ {[%clk 0:00:05]}  Kg4 {[%clk 0:00:18]} 51. Rg3+ {[%clk 0:00:05]}  Kh4 {[%clk 0:00:19]} 52. c4 {[%clk 0:00:04]}  g4 {[%clk 0:00:19]} 53. c5 {[%clk 0:00:03]}  Rd5 {[%clk 0:00:19]} 54. b4 {[%clk 0:00:03]}  Re5+ {[%clk 0:00:20]} 55. Kd2 {[%clk 0:00:02]}  Re4 {[%clk 0:00:19]} 56. a3 {[%clk 0:00:01]}  h5 {[%clk 0:00:18]} 57. c6 {[%clk 0:00:00]}  Rd4+ {[%clk 0:00:17]} 0-1


[Site "https://www.chess.com"]

[Event "Titled Tuesday Blitz October 31 Early 2023"]
[White "hsd2016"]
[Black "Pinto, Daniel"]
[BlackFideId "3303144"]
[WhiteElo "2270"]
[BlackElo "2457"]
[Result "0-1"]
[Round "4"]
[TimeControl "180+1"]
[Date "2023.10.31"]
[WhiteClock "0:00:04"]
[BlackClock "0:00:12"]
[Board "141"]

1. Nf3 {[%clk 0:03:00]}  c5 {[%clk 0:02:54]} 2. g3 {[%clk 0:03:00]}  Nc6 {[%clk 0:02:50]} 3. Bg2 {[%clk 0:02:56]}  g6 {[%clk 0:02:51]} 4. O-O {[%clk 0:02:56]}  Bg7 {[%clk 0:02:51]} 5. c4 {[%clk 0:02:57]}  e5 {[%clk 0:02:52]} 6. Nc3 {[%clk 0:02:55]}  Nge7 {[%clk 0:02:52]} 7. d3 {[%clk 0:02:52]}  O-O {[%clk 0:02:51]} 8. Ne1 {[%clk 0:02:52]}  d6 {[%clk 0:02:44]} 9. Nc2 {[%clk 0:02:51]}  Be6 {[%clk 0:02:44]} 10. e4 {[%clk 0:02:51]}  Rb8 {[%clk 0:02:44]} 11. Ne3 {[%clk 0:02:51]}  a6 {[%clk 0:02:44]} 12. Ned5 {[%clk 0:02:50]}  b5 {[%clk 0:02:42]} 13. cxb5 {[%clk 0:02:50]}  axb5 {[%clk 0:02:43]} 14. f4 {[%clk 0:02:43]}  b4 {[%clk 0:02:29]} 15. Ne2 {[%clk 0:02:05]}  Bg4 {[%clk 0:01:13]} 16. Nxe7+ {[%clk 0:01:50]}  Qxe7 {[%clk 0:01:12]} 17. h3 {[%clk 0:01:50]}  Bxe2 {[%clk 0:01:10]} 18. Qxe2 {[%clk 0:01:51]}  Nd4 {[%clk 0:01:11]} 19. Qf2 {[%clk 0:01:51]}  exf4 {[%clk 0:01:04]} 20. Bxf4 {[%clk 0:01:50]}  b3 {[%clk 0:00:59]} 21. axb3 {[%clk 0:01:37]}  Rxb3 {[%clk 0:00:49]} 22. Rfd1 {[%clk 0:01:08]}  Rxb2 {[%clk 0:00:24]} 23. Qf1 {[%clk 0:00:02]}  Ne2+ {[%clk 0:00:17]} 24. Kh1 {[%clk 0:00:02]}  g5 {[%clk 0:00:15]} 25. Be3 {[%clk 0:00:01]}  Nxg3+ {[%clk 0:00:13]} 26. Kh2 {[%clk 0:00:02]}  Nxf1+ {[%clk 0:00:14]} 27. Rxf1 {[%clk 0:00:03]}  Rxg2+ {[%clk 0:00:13]} 28. Kxg2 {[%clk 0:00:03]}  Bxa1 {[%clk 0:00:12]} 29. Rxa1 {[%clk 0:00:04]} 0-1


[Site "https://www.chess.com"]

[Event "Titled Tuesday Blitz October 31 Early 2023"]
[White "MMAHDI2013"]
[Black "parintele_chess"]
[WhiteElo "2447"]
[BlackElo "2248"]
[Result "1-0"]
[Round "4"]
[TimeControl "180+1"]
[Date "2023.10.31"]
[WhiteClock "0:00:25"]
[BlackClock "0:00:00"]
[Board "144"]

1. c4 {[%clk 0:03:00]}  c5 {[%clk 0:02:54]} 2. Nf3 {[%clk 0:02:59]}  Nf6 {[%clk 0:02:53]} 3. b3 {[%clk 0:02:59]}  g6 {[%clk 0:02:53]} 4. Bb2 {[%clk 0:02:59]}  Bg7 {[%clk 0:02:54]} 5. g3 {[%clk 0:03:00]}  O-O {[%clk 0:02:55]} 6. Bg2 {[%clk 0:03:01]}  Nc6 {[%clk 0:02:55]} 7. O-O {[%clk 0:03:01]}  d5 {[%clk 0:02:55]} 8. cxd5 {[%clk 0:03:02]}  Nxd5 {[%clk 0:02:54]} 9. Bxg7 {[%clk 0:03:03]}  Kxg7 {[%clk 0:02:55]} 10. d4 {[%clk 0:03:02]}  cxd4 {[%clk 0:02:52]} 11. Nxd4 {[%clk 0:03:03]}  Nxd4 {[%clk 0:02:50]} 12. Qxd4+ {[%clk 0:03:04]}  Nf6 {[%clk 0:02:50]} 13. Qe5 {[%clk 0:03:04]}  Kg8 {[%clk 0:01:51]} 14. Nc3 {[%clk 0:03:00]}  Ng4 {[%clk 0:01:44]} 15. Qc5 {[%clk 0:02:44]}  b6 {[%clk 0:01:19]} 16. Qc6 {[%clk 0:02:41]}  Rb8 {[%clk 0:01:15]} 17. Rfd1 {[%clk 0:02:38]}  Qe8 {[%clk 0:01:13]} 18. Nb5 {[%clk 0:01:45]}  Qxc6 {[%clk 0:01:00]} 19. Bxc6 {[%clk 0:01:43]}  a6 {[%clk 0:00:56]} 20. Nc7 {[%clk 0:01:40]}  Ne5 {[%clk 0:00:44]} 21. Bg2 {[%clk 0:01:40]}  Bb7 {[%clk 0:00:19]} 22. Bxb7 {[%clk 0:01:37]}  Rxb7 {[%clk 0:00:20]} 23. Nxa6 {[%clk 0:01:37]}  Ra7 {[%clk 0:00:21]} 24. Nb4 {[%clk 0:01:38]}  Rfa8 {[%clk 0:00:20]} 25. f4 {[%clk 0:01:34]}  Ng4 {[%clk 0:00:18]} 26. h3 {[%clk 0:01:28]}  Ne3 {[%clk 0:00:17]} 27. Rd3 {[%clk 0:01:28]}  Nf5 {[%clk 0:00:16]} 28. e4 {[%clk 0:01:28]}  Nd6 {[%clk 0:00:16]} 29. e5 {[%clk 0:01:11]}  Nf5 {[%clk 0:00:10]} 30. Rad1 {[%clk 0:01:05]}  h5 {[%clk 0:00:07]} 31. g4 {[%clk 0:01:02]}  hxg4 {[%clk 0:00:07]} 32. hxg4 {[%clk 0:01:03]}  Nh6 {[%clk 0:00:07]} 33. g5 {[%clk 0:01:03]}  Nf5 {[%clk 0:00:07]} 34. Rd7 {[%clk 0:00:51]}  Rxd7 {[%clk 0:00:04]} 35. Rxd7 {[%clk 0:00:52]}  Rc8 {[%clk 0:00:04]} 36. Rb7 {[%clk 0:00:45]}  Rc1+ {[%clk 0:00:04]} 37. Kf2 {[%clk 0:00:45]}  Kg7 {[%clk 0:00:02]} 38. Rxb6 {[%clk 0:00:44]}  e6 {[%clk 0:00:02]} 39. a4 {[%clk 0:00:43]}  Rb1 {[%clk 0:00:02]} 40. Nc6 {[%clk 0:00:43]}  Rb2+ {[%clk 0:00:02]} 41. Kf3 {[%clk 0:00:37]}  Nh4+ {[%clk 0:00:02]} 42. Ke4 {[%clk 0:00:34]}  Nf5 {[%clk 0:00:02]} 43. a5 {[%clk 0:00:30]}  Rg2 {[%clk 0:00:02]} 44. Kd3 {[%clk 0:00:26]}  Rg3+ {[%clk 0:00:02]} 45. Kc4 {[%clk 0:00:26]}  Rf3 {[%clk 0:00:02]} 46. a6 {[%clk 0:00:26]}  Rxf4+ {[%clk 0:00:02]} 47. Kc5 {[%clk 0:00:27]}  Ne3 {[%clk 0:00:00]} 48. a7 {[%clk 0:00:25]} 1-0


[Site "https://www.chess.com"]